bitfinex/quotes_ETHUSD_20250603
["timestamp","ask_amount","ask_price","bid_price","bid_amount"]
[1748976307380,4.57260726,2617.8,2617.3,13.42763419]
[1748976308102,0.7526,2617.8,2617.5,8.0]
[1748976308297,0.45925171,2617.7,2617.5,8.0]
[1748976311388,0.7526,2617.8,2617.5,8.0]
[1748976311895,0.7526,2617.8,2617.3,5.42771479]
[1748976312209,3.82035453,2617.6,2617.3,1.607]
[1748976312511,3.82035453,2617.6,2617.0,0.51]
[1748976312512,0.8259,2617.6,2617.0,0.51]
[1748976312676,0.8259,2617.6,2617.3,8.0]
[1748976313014,1.08620608,2617.5,2617.2,8.0]
[1748976313675,4.90664964,2617.5,2617.0,11.82110606]
[1748976314409,3.82067693,2617.4,2617.0,8.0]
[1748976314608,4.3115607,2617.3,2616.8,11.82139242]
[1748976315671,0.4906883,2617.3,2616.9,3.82129721]
[1748976316709,0.4906883,2617.3,2617.0,3.82115638]
[1748976319618,0.8056,2617.4,2617.1,3.82094052]
[1748976319929,0.7974,2617.8,2617.3,8.0]
[1748976320077,0.7974,2617.8,2617.6,8.20049498]
[1748976320281,0.7974,2617.8,2617.6,4.38020187]
[1748976320516,0.7974,2617.8,2617.5,11.82042109]
[1748976321295,0.02,2617.9,2617.6,3.82028223]
[1748976321487,0.02,2617.9,2617.7,3.82014019]
[1748976322000,0.02,2617.9,2617.8,3.82000152]
[1748976322194,0.02,2617.9,2617.6,8.20043234]
[1748976322195,0.02,2617.9,2617.7,11.82007976]
[1748976322814,0.02,2617.9,2617.8,4.38020187]
[1748976323011,0.02,2617.9,2617.8,16.20020339]
[1748976324111,0.02,2617.9,2617.8,12.38020187]
[1748976324308,0.02,2617.9,2617.8,16.20020339]
[1748976325523,0.02,2617.9,2617.8,12.38020187]
[1748976326825,0.02,2617.9,2617.8,16.20020339]
[1748976330928,0.02,2617.9,2617.8,8.0]
[1748976332206,3.82032815,2617.6,2617.4,7.78]
[1748976332408,4.66088636,2617.6,2617.5,8.0]
[1748976332809,0.84059297,2617.6,2617.5,8.0]
[1748976333702,4.58564016,2617.8,2617.5,8.0]
[1748976334438,3.82015268,2617.7,2617.4,8.0]
[1748976334605,3.82021838,2617.7,2617.3,8.0]
[1748976335002,4.58567394,2617.8,2617.3,11.82072042]
[1748976335204,4.58567394,2617.8,2617.4,3.82058515]
[1748976335402,6.0497181,2617.8,2617.3,11.82061353]
[1748976337948,6.0497181,2617.8,2617.4,3.82055713]
[1748976338649,2.22964416,2617.8,2617.4,3.82055713]
[1748976338946,6.04965196,2617.8,2617.4,3.82055713]
[1748976339527,6.04965196,2617.8,2617.4,8.200759]
[1748976340037,2.22964416,2617.8,2617.4,8.200759]
[1748976340350,6.04964789,2617.8,2617.4,8.200759]
[1748976341251,6.04964789,2617.8,2617.4,4.38020187]
[1748976341437,0.98895383,2617.7,2617.3,11.82064576]
[1748976341828,0.7656,2617.8,2617.3,8.0]
[1748976342028,0.7656,2617.8,2617.4,3.82057648]
[1748976342427,4.58564298,2617.8,2617.4,3.82057648]
[1748976343315,0.7656,2617.8,2617.6,8.0]
[1748976343517,0.7656,2617.8,2617.5,8.0]
[1748976343816,0.7656,2617.8,2617.5,11.82041406]
[1748976344022,0.7656,2617.8,2617.6,3.82027136]
[1748976344441,0.7656,2617.8,2617.5,11.82040784]
[1748976344858,4.58566538,2617.8,2617.5,8.0]
[1748976345037,5.07106761,2617.8,2617.5,8.0]
[1748976345753,3.82022812,2617.7,2617.5,8.0]
[1748976346047,5.07108631,2617.8,2617.5,8.0]
[1748976346925,3.82015853,2617.7,2617.5,8.0]
[1748976347145,3.82031963,2617.6,2617.3,8.0]
[1748976347730,3.82023534,2617.7,2617.3,8.0]
[1748976348057,3.82022848,2617.7,2617.3,8.0]
[1748976348218,3.82022848,2617.7,2617.3,11.82068902]
[1748976349156,5.07109,2617.8,2617.3,11.82068902]
[1748976349533,3.82021924,2617.7,2617.3,11.82068744]
[1748976349933,5.0710912,2617.8,2617.3,11.82068744]
[1748976350469,3.82015999,2617.7,2617.3,11.82068744]
[1748976350672,5.07106261,2617.8,2617.3,11.82068744]
[1748976351564,5.07106261,2617.8,2617.5,8.0]
[1748976360335,1.25100223,2617.8,2617.5,8.0]
[1748976361182,1.25100223,2617.8,2617.5,11.82043374]
[1748976361341,0.02,2617.9,2617.8,3.82000152]
[1748976361538,0.02,2617.9,2617.8,16.20020339]
[1748976364350,3.8398556,2617.9,2617.8,8.0]
[1748976364551,0.86849662,2617.9,2617.8,8.0]
[1748976364956,0.02,2617.9,2617.8,8.0]
[1748976365439,0.02,2617.9,2617.8,11.82000152]
[1748976370581,0.02,2617.9,2617.8,8.0]
[1748976370747,0.02,2617.9,2617.5,1.605]
[1748976370953,0.02,2617.9,2617.5,5.98520187]
[1748976371149,3.83985589,2617.9,2617.6,8.0]
[1748976371764,3.82007167,2617.8,2617.4,8.0]
[1748976372705,4.68548378,2617.9,2617.4,11.82055795]
[1748976373049,4.68548378,2617.9,2617.6,8.0]
[1748976373255,0.86554837,2617.9,2617.6,8.0]
[1748976373469,0.86554837,2617.9,2617.6,11.82028939]
[1748976374595,0.02,2617.9,2617.7,4.38020187]
[1748976374769,0.02,2617.9,2617.6,8.0]
[1748976374966,3.83991327,2617.9,2617.5,4.38020187]
[1748976375167,0.02,2617.9,2617.4,11.63750218]
[1748976375480,3.82000971,2617.8,2617.4,11.63750218]
[1748976375791,3.82000971,2617.8,2617.4,3.82050218]
[1748976378479,3.83993764,2617.9,2617.4,3.82050218]
[1748976378679,3.83993764,2617.9,2617.5,8.20059611]
[1748976378994,0.02,2617.9,2617.5,8.20059611]
[1748976380062,0.02,2617.9,2617.8,3.82000152]
[1748976380563,0.02,2617.9,2617.8,13.42500152]
[1748976380783,0.02,2617.9,2617.8,18.65141852]
[1748976384658,0.02,2617.9,2617.8,17.77529152]
[1748976384859,0.02,2617.9,2617.8,13.97500152]
[1748976385516,0.02,2617.9,2617.8,18.26956152]
[1748976388303,0.02,2617.9,2617.8,24.48056152]
[1748976388820,0.02,2617.9,2617.8,24.56620339]
[1748976389184,0.02,2617.9,2617.8,24.01620339]
[1748976390418,0.02,2617.9,2617.8,16.20020339]
[1748976391282,0.02,2617.9,2617.8,12.38020187]
[1748976392625,0.02,2617.9,2617.5,1.604]
[1748976392782,0.02,2617.9,2617.5,5.42435769]
[1748976392986,0.02,2617.9,2617.6,8.0]
[1748976393412,0.02,2617.9,2617.5,9.604]
[1748976393413,4.3049291,2617.9,2617.5,9.604]
[1748976394407,0.48506849,2617.9,2617.5,9.604]
[1748976394619,4.30500633,2617.9,2617.5,13.42440793]
[1748976394807,0.48506849,2617.9,2617.5,13.42440793]
[1748976395536,0.48506849,2617.9,2617.6,3.82027893]
[1748976396106,0.48506849,2617.9,2617.5,9.604]
[1748976396321,0.48506849,2617.9,2617.5,13.42433706]
[1748976396750,4.30492468,2617.9,2617.5,13.42433706]
[1748976397154,4.30492468,2617.9,2617.5,3.74771775]
[1748976397306,4.30492468,2617.9,2617.4,4.38020187]
[1748976397307,0.48506849,2617.9,2617.6,3.82028463]
[1748976397827,0.02,2617.9,2617.8,8.20020339]
[1748976400427,0.02,2617.9,2617.7,3.82006761]
[1748976400636,0.02,2617.9,2617.7,3.82013856]
[1748976400814,0.02,2617.9,2617.8,3.82000152]
[1748976401019,0.02,2617.9,2617.8,8.20020339]
[1748976403336,0.02,2617.9,2617.8,4.38020187]
[1748976403858,0.02,2617.9,2617.6,9.80448079]
[1748976404257,0.02,2617.9,2617.5,3.82037808]
[1748976404552,0.02,2617.9,2617.5,5.42437808]
[1748976404774,0.02,2617.9,2617.4,4.38020187]
[1748976404991,0.8291,2617.8,2617.4,8.20067008]
[1748976405317,0.8291,2617.8,2617.5,3.82042345]
[1748976405532,0.8291,2617.8,2617.5,3.82042953]
[1748976406235,0.8291,2617.8,2617.4,4.38020187]
[1748976406435,0.8291,2617.8,2617.5,3.82043426]
[1748976406778,0.8291,2617.8,2617.6,3.82027517]
[1748976407864,0.8291,2617.8,2617.6,8.20047704]
[1748976409450,0.8291,2617.8,2617.6,4.38020187]
[1748976409849,0.8291,2617.8,2617.6,8.20048855]
[1748976411363,0.8291,2617.8,2617.7,3.82014745]
[1748976411563,0.8291,2617.8,2617.6,8.20044283]
[1748976411859,0.02,2617.9,2617.7,3.82014745]
[1748976412061,0.02,2617.9,2617.8,8.20020339]
[1748976412771,0.02,2617.9,2617.8,4.38020187]
[1748976414240,0.02,2617.9,2617.8,8.20020339]
[1748976416760,0.02,2617.9,2617.8,4.38020187]
[1748976417063,0.02,2617.9,2617.8,8.20020339]
[1748976420269,0.02,2617.9,2617.8,12.38020187]
[1748976420436,0.02,2617.9,2617.8,16.20020339]
[1748976421854,0.02,2617.9,2617.8,8.0]
[1748976424470,0.02,2617.9,2617.5,9.384]
[1748976424471,3.82022174,2617.7,2617.5,7.78]
[1748976424634,3.82058531,2617.4,2617.0,6.72]
[1748976424833,3.82066021,2617.4,2617.1,8.0]
[1748976425033,3.82049707,2617.5,2617.1,8.0]
[1748976425263,3.82049707,2617.5,2617.0,14.41136823]
[1748976425965,3.82059254,2617.4,2617.1,8.0]
[1748976426556,0.8033,2617.6,2617.2,8.20099851]
[1748976426748,4.62359396,2617.6,2617.2,8.20099851]
[1748976427346,2.26866531,2617.6,2617.1,12.38020187]
[1748976427585,3.82059641,2617.4,2617.1,12.38020187]
[1748976428073,3.82055534,2617.5,2617.1,12.38020187]
[1748976429075,4.64360152,2617.8,2617.3,8.20080393]
[1748976429272,4.64360152,2617.8,2617.5,4.38020187]
[1748976429436,3.82029339,2617.6,2617.3,4.38020187]
[1748976429635,3.82014745,2617.7,2617.1,8.0]
[1748976429842,3.82043935,2617.5,2617.1,4.38020187]
[1748976430116,0.8236,2617.4,2617.1,4.38020187]
[1748976430511,4.64424972,2617.4,2617.1,4.38020187]
[1748976430695,4.64424972,2617.4,2617.2,8.0]
[1748976431422,0.7578,2617.7,2617.4,11.82045603]
[1748976431728,0.7578,2617.7,2617.6,12.38020187]
[1748976432783,0.7578,2617.7,2617.6,8.0]
[1748976433739,5.03772934,2617.7,2617.6,8.0]
[1748976434512,1.21758189,2617.7,2617.6,8.0]
[1748976435115,5.03772934,2617.7,2617.6,8.0]
[1748976435741,1.21758189,2617.7,2617.6,8.0]
[1748976436095,0.02,2617.9,2617.7,3.8201194]
[1748976436422,0.02,2617.9,2617.8,4.38020187]
[1748976437029,0.02,2617.9,2617.6,16.20043121]
[1748976437229,0.02,2617.9,2617.6,12.38020187]
[1748976437403,3.83989043,2617.9,2617.6,12.38020187]
[1748976437999,0.02,2617.9,2617.6,12.38020187]
[1748976438221,0.7767,2617.8,2617.6,12.38020187]
[1748976440721,0.7767,2617.8,2617.6,8.0]
[1748976441038,1.23835891,2617.8,2617.6,8.0]
[1748976441411,0.7767,2617.8,2617.6,8.0]
[1748976441939,0.02,2617.9,2617.6,11.8202757]
[1748976442099,0.02,2617.9,2617.7,4.38020187]
[1748976443015,0.02,2617.9,2617.6,8.0]
[1748976443557,3.82003586,2617.8,2617.6,8.0]
[1748976443720,3.83991853,2617.9,2617.6,8.0]
[1748976443897,4.68202781,2617.9,2617.6,8.0]
[1748976445123,3.82006421,2617.8,2617.6,8.0]
[1748976446851,3.82014745,2617.7,2617.6,8.0]
[1748976447153,4.59784745,2617.7,2617.6,8.0]
[1748976448731,3.82038575,2617.6,2617.4,8.0]
[1748976449550,4.66218271,2617.6,2617.4,8.0]
[1748976449743,4.66218271,2617.6,2617.3,8.0]
[1748976450279,0.84181543,2617.6,2617.3,8.0]
[1748976450478,4.66211316,2617.6,2617.3,8.0]
[1748976450974,0.84181543,2617.6,2617.3,11.82067303]
[1748976451141,4.597897,2617.7,2617.3,11.82067303]
[1748976451341,0.7777,2617.7,2617.4,8.2007306]
[1748976451930,4.5978727,2617.7,2617.4,4.38020187]
[1748976452288,3.82031277,2617.6,2617.4,4.38020187]
[1748976452746,1.46290699,2617.6,2617.2,12.38020187]
[1748976453069,3.82038455,2617.6,2617.2,12.38020187]
[1748976453244,3.82038455,2617.6,2617.2,16.20107627]
[1748976453843,3.82044845,2617.5,2617.2,12.38020187]
[1748976454035,3.82036167,2617.6,2617.2,16.20107657]
[1748976454587,3.82036167,2617.6,2617.2,12.38020187]
[1748976454931,3.82046724,2617.5,2617.2,12.38020187]
[1748976458367,4.59792159,2617.7,2617.2,16.20107025]
[1748976458568,3.82030338,2617.6,2617.2,16.20107025]
[1748976459476,10.80893648,2617.7,2617.2,16.20107025]
[1748976459644,3.82030737,2617.6,2617.2,16.20107025]
[1748976461084,12.35803907,2617.7,2617.2,16.20107025]
[1748976461287,2.32681132,2617.7,2617.4,12.38020187]
[1748976461462,3.82004127,2617.8,2617.4,16.20076456]
[1748976461653,10.03104127,2617.8,2617.4,16.20076456]
[1748976461856,10.03101615,2617.8,2617.4,16.20070509]
[1748976462353,0.02,2617.9,2617.7,4.38020187]
[1748976462552,6.231,2617.9,2617.7,4.38020187]
[1748976462752,1.10026807,2617.9,2617.4,8.0]
[1748976463688,3.82025273,2617.7,2617.4,8.0]
[1748976463908,3.82043935,2617.5,2617.4,8.0]
[1748976464062,3.82053081,2617.5,2617.1,8.0]
[1748976464464,3.82060772,2617.4,2617.1,8.0]
[1748976464865,3.82081945,2617.3,2616.9,2.114]
[1748976465064,3.82086558,2617.3,2616.9,1.604]
[1748976465267,3.82086558,2617.3,2616.9,9.604]
[1748976465884,3.82116927,2617.0,2616.9,1.604]
[1748976466861,3.8211077,2617.1,2616.9,1.604]
[1748976467266,4.63315599,2617.2,2616.9,9.604]
[1748976467679,3.82102501,2617.1,2616.9,9.604]
[1748976470013,0.8122,2617.2,2616.9,9.604]
[1748976470213,3.82116927,2617.0,2616.9,8.0]
[1748976470574,3.82154125,2616.8,2616.5,0.37997685]
[1748976470772,3.8220208,2616.5,2616.3,8.0]
[1748976470979,3.82133117,2616.9,2616.2,15.98420187]
[1748976471311,3.82185042,2616.6,2616.3,8.0]
[1748976471605,3.82185042,2616.6,2616.3,8.37223258]
[1748976471814,1.08078312,2616.8,2616.3,0.37223258]
[1748976472001,3.82185111,2616.6,2616.3,8.0]
[1748976473215,3.82185111,2616.6,2616.2,4.38020187]
[1748976474496,10.80917559,2616.7,2616.4,4.38020187]
[1748976474692,12.38032332,2616.7,2616.4,4.38020187]
[1748976474894,3.82176171,2616.6,2616.4,4.38020187]
[1748976475521,3.82201859,2616.5,2616.0,3.82258681]
[1748976475824,3.82205381,2616.4,2616.1,4.38020187]
[1748976476229,8.55864773,2616.7,2616.1,4.38020187]
[1748976476230,3.82190581,2616.5,2616.1,4.38020187]
[1748976476530,3.82190581,2616.5,2616.1,8.20267836]
[1748976476930,3.82190581,2616.5,2616.1,4.38020187]
[1748976477430,12.38030772,2616.7,2616.3,4.38020187]
[1748976477595,5.05985367,2616.6,2616.3,4.38020187]
[1748976481654,10.80918962,2616.7,2616.3,4.38020187]
[1748976481815,0.7755,2616.7,2615.9,14.41609136]
[1748976482001,4.57904752,2617.3,2616.8,3.82138996]
[1748976482207,0.7582,2617.3,2617.0,4.38020187]
[1748976482443,4.57903674,2617.3,2617.0,4.38020187]
[1748976482845,10.86094641,2617.5,2617.0,8.57829586]
[1748976483144,3.82058531,2617.4,2617.0,4.75721091]
[1748976483364,7.0404,2617.5,2617.2,4.38020187]
[1748976483500,7.0404,2617.5,2617.1,3.82102008]
[1748976483501,10.03343935,2617.5,2617.4,4.38020187]
[1748976483840,10.03343935,2617.5,2617.2,4.38020187]
[1748976484002,3.82043935,2617.5,2617.2,4.38020187]
[1748976484403,3.82059494,2617.4,2617.2,4.38020187]
[1748976484617,3.82051551,2617.5,2617.2,4.38020187]
[1748976484820,5.44903911,2617.5,2617.2,4.38020187]
[1748976485137,5.44910624,2617.5,2617.2,4.38020187]
[1748976485503,3.82076586,2617.3,2617.0,4.38020187]
[1748976485911,1.6285236,2617.5,2616.8,4.38020187]
[1748976486098,3.8214041,2616.9,2616.5,4.38020187]
[1748976486303,3.82124212,2617.0,2616.5,16.01803974]
[1748976487240,3.82124212,2617.0,2616.7,4.38020187]
[1748976487442,6.212,2617.3,2616.9,4.38020187]
[1748976487631,7.0394,2617.4,2616.9,4.38020187]
[1748976487832,0.86679236,2617.3,2616.9,4.38020187]
[1748976488013,4.68761354,2617.3,2616.9,4.38020187]
[1748976488219,3.82090301,2617.2,2616.9,4.38020187]
[1748976489137,3.82117463,2617.0,2616.7,4.38020187]
[1748976490042,0.8274,2617.4,2616.8,3.82136272]
[1748976490217,3.82085604,2617.3,2616.8,3.82136272]
[1748976490542,3.82085604,2617.3,2616.9,4.38020187]
[1748976491018,3.82109546,2617.1,2616.9,4.38020187]
[1748976491219,3.82094037,2617.2,2616.9,4.38020187]
[1748976491442,3.82083772,2617.3,2616.9,4.38020187]
[1748976491742,3.82048756,2617.5,2617.1,4.38020187]
[1748976491913,3.82058646,2617.4,2617.1,4.38020187]
[1748976493637,6.212,2617.7,2617.3,4.38020187]
[1748976493803,6.212,2617.7,2617.1,4.38020187]
[1748976494137,3.8208618,2617.3,2616.9,4.38020187]
[1748976494344,3.82088046,2617.2,2616.8,9.80563808]
[1748976494839,0.7654,2617.6,2616.8,5.98420187]
[1748976495040,3.82120039,2617.0,2616.8,1.604]
[1748976495405,3.82108645,2617.1,2616.8,1.604]
[1748976495803,3.82108645,2617.1,2616.8,5.98420187]
[1748976496646,3.82118959,2617.0,2616.8,5.98420187]
[1748976497242,3.82110995,2617.1,2616.8,5.98420187]
[1748976497944,3.82102327,2617.1,2616.8,5.98420187]
[1748976498148,4.27975598,2617.1,2616.8,5.98420187]
[1748976498447,3.82111365,2617.1,2616.8,5.98420187]
[1748976499254,3.82076319,2617.3,2617.0,4.38020187]
[1748976499454,3.820422,2617.6,2617.2,4.38020187]
[1748976499625,3.82051803,2617.5,2617.2,4.38020187]
[1748976499826,3.82060723,2617.4,2617.2,4.38020187]
[1748976501117,3.82050776,2617.5,2617.2,4.38020187]
[1748976501556,3.82061004,2617.4,2617.2,4.38020187]
[1748976501717,3.82048375,2617.5,2617.2,4.38020187]
[1748976501919,3.82064471,2617.4,2617.0,4.38020187]
[1748976502634,3.82064471,2617.4,2617.0,8.20136568]
[1748976503058,4.69290945,2617.5,2617.0,8.20136568]
[1748976503354,3.82052129,2617.5,2617.0,8.20136568]
[1748976503551,3.82061662,2617.4,2617.0,4.38020187]
[1748976503775,3.82025841,2617.7,2617.2,4.38020187]
[1748976503975,7.0101,2617.8,2617.2,4.38020187]
[1748976504177,3.82057573,2617.5,2617.2,4.38020187]
[1748976504454,3.82064038,2617.4,2617.0,11.97836995]
[1748976504618,3.82064038,2617.4,2617.1,8.0]
[1748976505016,0.76410001,2617.4,2617.1,8.0]
[1748976505288,3.82087727,2617.2,2617.1,8.0]
[1748976505433,3.82083886,2617.3,2617.1,8.0]
[1748976505944,3.82087727,2617.2,2617.1,8.0]
[1748976506135,3.82102327,2617.1,2617.0,15.59816808]
[1748976506333,4.57423461,2617.4,2617.0,15.59816808]
[1748976506544,3.82080479,2617.3,2617.0,15.59816808]
[1748976507269,3.82102327,2617.1,2617.0,15.59816808]
[1748976507560,3.82096519,2617.2,2617.0,15.59816808]
[1748976507923,3.82102327,2617.1,2617.0,15.59816808]
[1748976508263,3.82095221,2617.2,2617.0,15.59816808]
[1748976508475,4.70623079,2617.2,2617.0,15.59816808]
[1748976508624,3.82102327,2617.1,2617.0,15.59816808]
[1748976508825,3.82102327,2617.1,2617.0,8.0]
[1748976509253,0.88527858,2617.2,2617.0,8.0]
[1748976509574,3.82051781,2617.5,2617.0,16.20132154]
[1748976509872,3.82060564,2617.4,2617.0,16.20132154]
[1748976510226,3.82060564,2617.4,2617.0,12.38020187]
[1748976510779,0.02,2617.9,2617.1,8.0]
[1748976511079,4.64670593,2617.8,2617.1,8.0]
[1748976511231,3.82060349,2617.4,2617.1,8.0]
[1748976511876,3.82114392,2617.1,2616.9,8.0]
[1748976512163,3.82093952,2617.2,2616.8,3.82145325]
[1748976512350,3.82093952,2617.2,2616.8,8.20165512]
[1748976512863,3.82093952,2617.2,2616.8,4.38020187]
[1748976513374,3.82093952,2617.2,2616.8,8.20166057]
[1748976513657,4.64734506,2617.4,2616.8,8.20161829]
[1748976513876,0.46473451,2617.3,2616.8,8.20161829]
[1748976514021,3.82094692,2617.2,2616.8,4.38020187]
[1748976514228,3.82094692,2617.2,2616.8,8.20165094]
[1748976514465,5.32094692,2617.2,2616.8,8.20165094]
[1748976514760,3.8210354,2617.1,2616.8,4.38020187]
[1748976515348,3.8210354,2617.1,2616.7,8.0]
[1748976515349,3.82129934,2617.0,2616.7,8.0]
[1748976516022,5.32093449,2617.2,2616.7,11.82157068]
[1748976516023,5.32098299,2617.2,2616.7,11.82157068]
[1748976516228,3.82108171,2617.1,2616.7,11.82160551]
[1748976516526,3.82108171,2617.1,2616.7,8.0]
[1748976516728,1.5,2617.2,2616.8,3.8213863]
[1748976517238,1.5,2617.2,2616.9,3.8212745]
[1748976517549,1.5,2617.2,2616.8,8.20157807]
[1748976518176,1.5,2617.2,2616.9,3.82126248]
[1748976519589,1.5,2617.2,2616.8,8.20157568]
[1748976519879,5.32091444,2617.2,2616.8,4.38020187]
[1748976520084,3.82134938,2616.9,2616.6,0.37491744]
[1748976520364,3.82134938,2616.9,2616.6,8.37491744]
[1748976520568,3.82123222,2617.0,2616.6,8.37491744]
[1748976520764,3.82123222,2617.0,2616.6,16.57687061]
[1748976522568,4.58383908,2617.1,2616.6,16.57687061]
[1748976523068,1.5,2617.2,2616.8,12.38020187]
[1748976523271,1.5,2617.2,2617.0,4.38020187]
[1748976523636,1.5,2617.2,2616.8,16.20158769]
[1748976523976,3.82104715,2617.1,2616.8,12.38020187]
[1748976525388,3.8211893,2617.0,2616.8,12.38020187]
[1748976525588,3.8211893,2617.0,2616.8,8.0]
[1748976525589,4.64491529,2616.9,2616.8,8.0]
[1748976529675,4.64491529,2616.9,2616.6,0.37491744]
[1748976530052,3.82149484,2616.8,2616.6,0.37491744]
[1748976530251,3.82175342,2616.6,2616.5,1.604]
[1748976530488,0.7693,2616.8,2616.0,0.51]
[1748976530687,6.212,2616.9,2616.0,0.51]
[1748976530688,3.82225495,2616.3,2616.0,0.51]
[1748976530867,4.59155495,2616.3,2616.0,0.51]
[1748976531063,3.82236248,2616.2,2615.9,10.20409136]
[1748976531389,4.59156786,2616.3,2615.9,8.0]
[1748976531617,3.82237362,2616.2,2615.8,3.780951]
[1748976531886,3.82237362,2616.2,2615.9,8.0]
[1748976532090,4.59151048,2616.3,2615.9,8.0]
[1748976532290,0.7693,2616.3,2615.9,11.82274597]
[1748976532680,4.59157736,2616.3,2615.9,12.7636293]
[1748976533055,0.7693,2616.3,2615.9,16.58639985]
[1748976533269,4.59150136,2616.3,2615.9,12.7636293]
[1748976533755,4.59150136,2616.3,2615.9,16.58639007]
[1748976533756,0.7693,2616.3,2615.9,16.58639007]
[1748976534094,0.7693,2616.3,2616.0,3.8226192]
[1748976534295,3.82179958,2616.6,2616.0,3.8226192]
[1748976534296,4.63548481,2616.5,2616.0,3.8226192]
[1748976535311,3.8220687,2616.4,2616.0,3.8226192]
[1748976535495,3.8220687,2616.4,2615.9,16.5863357]
[1748976535791,3.82230562,2616.3,2615.9,12.7636293]
[1748976535959,3.82230562,2616.3,2615.9,16.58639637]
[1748976536285,3.82211295,2616.4,2615.9,16.58639249]
[1748976536491,4.6354649,2616.5,2616.0,3.82260811]
[1748976536880,4.6354649,2616.5,2616.2,8.0]
[1748976537085,3.82204836,2616.4,2616.2,8.0]
[1748976540305,3.82219164,2616.3,2616.2,8.0]
[1748976540501,0.46356916,2616.3,2615.8,8.0]
[1748976540810,3.82273323,2616.0,2615.8,8.0]
[1748976541008,3.82273323,2616.0,2615.6,5.98420187]
[1748976541208,0.7502,2616.1,2615.7,8.0]
[1748976541379,4.57275276,2616.1,2615.7,11.82304845]
[1748976541579,0.7502,2616.1,2615.7,11.82304845]
[1748976541981,4.57269868,2616.1,2615.7,8.0]
[1748976542926,3.82225175,2616.3,2615.8,4.38020187]
[1748976543245,0.8061,2616.9,2616.2,4.38020187]
[1748976543444,0.8061,2616.9,2616.5,4.38020187]
[1748976543721,0.8061,2616.9,2616.5,8.20203116]
[1748976543883,2.5,2617.0,2616.6,3.82172767]
[1748976544082,3.82136419,2616.9,2616.5,4.38020187]
[1748976544283,2.5,2617.0,2616.5,4.38020187]
[1748976544490,2.5,2617.0,2616.6,11.82172226]
[1748976545177,2.5,2617.0,2616.7,3.82158865]
[1748976545401,2.5,2617.0,2616.7,4.38020187]
[1748976545787,2.5,2617.0,2616.7,8.20180396]
[1748976546320,2.5,2617.0,2616.7,4.38020187]
[1748976546525,3.82142499,2616.9,2616.5,12.38020187]
[1748976547284,3.82142499,2616.9,2616.5,16.20208523]
[1748976547495,6.32125327,2617.0,2616.5,16.20208523]
[1748976547819,2.5,2617.0,2616.6,3.82174949]
[1748976548019,6.32118286,2617.0,2616.5,16.20201713]
[1748976549823,0.7521,2616.9,2616.5,8.0]
[1748976550120,0.7521,2616.9,2616.4,8.0]
[1748976550341,3.82169013,2616.7,2616.4,8.0]
[1748976551182,3.82190379,2616.5,2616.2,8.0]
[1748976551386,3.8218267,2616.6,2616.2,8.0]
[1748976552300,3.8218267,2616.6,2616.2,11.82232576]
[1748976552718,0.7668,2616.7,2616.0,1.604]
[1748976552919,3.82210461,2616.4,2616.0,1.604]
[1748976554691,4.5884482,2616.7,2616.0,1.604]
[1748976554921,3.82216953,2616.4,2616.0,1.604]
[1748976555838,1.53292563,2616.6,2616.0,1.604]
[1748976556023,3.82217183,2616.4,2615.9,16.20296018]
[1748976556811,3.82217183,2616.4,2616.1,8.0]
[1748976558098,3.82217183,2616.4,2616.1,12.38020187]
[1748976558796,6.213,2616.7,2616.3,4.38020187]
[1748976559000,0.7564,2616.9,2616.0,12.38020187]
[1748976559001,10.03452531,2616.8,2616.5,4.38020187]
[1748976559626,3.82161364,2616.7,2616.5,4.38020187]
[1748976560828,3.82161364,2616.7,2616.4,8.0]
[1748976561336,3.82189948,2616.5,2616.4,8.0]
[1748976561540,3.82169259,2616.7,2616.4,8.0]
[1748976562549,3.82152925,2616.8,2616.4,8.0]
[1748976562925,3.82152925,2616.8,2616.4,11.82203161]
[1748976563352,0.7564,2616.9,2616.5,4.38020187]
[1748976563553,2.5,2617.0,2616.5,4.38020187]
[1748976563554,6.32123738,2617.0,2616.5,4.38020187]
[1748976563852,2.5,2617.0,2616.7,4.38020187]
[1748976564230,6.32119133,2617.0,2616.7,4.38020187]
[1748976564550,2.5,2617.0,2616.7,4.38020187]
[1748976564753,6.32125232,2617.0,2616.5,4.38020187]
[1748976565041,3.82133886,2616.9,2616.5,8.20199992]
[1748976565648,0.8168,2616.8,2616.4,8.0]
[1748976565835,3.82167284,2616.7,2616.2,8.20239437]
[1748976566040,3.82167284,2616.7,2616.4,8.0]
[1748976566853,4.63833014,2616.8,2616.4,8.0]
[1748976567255,4.63833014,2616.8,2616.4,12.38020187]
[1748976567957,3.82153014,2616.8,2616.4,16.2022393]
[1748976568255,3.82153014,2616.8,2616.4,12.38020187]
[1748976568431,3.82163572,2616.7,2616.4,12.38020187]
[1748976569040,3.82183578,2616.6,2616.2,4.38020187]
[1748976569444,0.7684,2616.6,2616.2,4.38020187]
[1748976569624,3.82196779,2616.5,2616.1,8.0]
[1748976570247,4.5902385,2616.6,2616.1,11.82241929]
[1748976570557,4.5902385,2616.6,2616.2,3.82231563]
[1748976571157,4.5902385,2616.6,2616.1,11.82238846]
[1748976572055,4.5902385,2616.6,2616.2,3.82231622]
[1748976572459,4.5902385,2616.6,2616.1,11.82240209]
[1748976572884,0.7684,2616.6,2616.0,15.80093474]
[1748976573052,3.82199785,2616.5,2616.0,15.48474923]
[1748976573238,4.59022969,2616.6,2616.1,3.82247544]
[1748976573433,5.41697849,2616.6,2616.1,3.82247544]
[1748976574263,3.82190806,2616.5,2616.1,3.82247956]
[1748976574509,3.82190806,2616.5,2616.0,8.20274588]
[1748976574995,4.59023083,2616.6,2616.2,4.38020187]
[1748976576859,3.82190836,2616.5,2616.2,4.38020187]
[1748976577258,3.82219528,2616.3,2616.0,4.38020187]
[1748976577456,3.82245532,2616.2,2615.9,1.604]
[1748976577696,3.82236786,2616.2,2615.9,9.604]
[1748976577906,3.82222595,2616.3,2615.9,9.604]
[1748976578599,3.82212739,2616.4,2615.9,13.42669992]
[1748976578805,3.82221444,2616.3,2615.9,13.42669992]
[1748976579467,3.82221444,2616.3,2615.9,11.82269992]
[1748976580482,3.8222006,2616.3,2616.0,4.38020187]
[1748976581000,3.8221243,2616.4,2616.0,4.38020187]